bitfinex/quotes_BTCUSD_20250922
["timestamp","ask_amount","ask_price","bid_price","bid_amount"]
[1758571698138,0.35354219,112280.0,112270.0,1.13113105]
[1758571698479,0.35354219,112280.0,112270.0,1.13425105]
[1758571698911,0.35354219,112280.0,112270.0,0.85670908]
[1758571699108,0.35354219,112280.0,112270.0,0.57214908]
[1758571699322,0.35354219,112280.0,112270.0,0.95298908]
[1758571703153,0.35354219,112280.0,112270.0,0.95610908]
[1758571703351,0.35354219,112280.0,112270.0,0.62838944]
[1758571703674,0.35354219,112280.0,112270.0,0.95610908]
[1758571704416,0.35139219,112280.0,112270.0,0.95610908]
[1758571704622,0.35139219,112280.0,112270.0,1.06503527]
[1758571706049,0.36035468,112280.0,112270.0,0.62838944]
[1758571706391,0.36035468,112280.0,112270.0,1.06503527]
[1758571706601,0.36035468,112280.0,112270.0,1.24317724]
[1758571707013,0.36035468,112280.0,112270.0,1.06503527]
[1758571707175,0.36035468,112280.0,112270.0,0.62838944]
[1758571707371,0.36035468,112280.0,112270.0,1.06503527]
[1758571708828,0.36035468,112280.0,112270.0,0.62838944]
[1758571709028,0.36237468,112280.0,112270.0,1.06503527]
[1758571709865,0.36035468,112280.0,112270.0,1.06503527]
[1758571713799,0.36237468,112280.0,112270.0,0.96543527]
[1758571714004,0.36237468,112280.0,112270.0,1.06171527]
[1758571715341,0.36237468,112280.0,112270.0,1.06484527]
[1758571715990,0.36035468,112280.0,112270.0,1.24298724]
[1758571716782,0.36035468,112280.0,112270.0,1.06484527]
[1758571718017,0.36035468,112280.0,112270.0,0.62819944]
[1758571718419,0.36035468,112280.0,112270.0,1.06484527]
[1758571718647,0.36237468,112280.0,112270.0,0.24242944]
[1758571718778,0.36237468,112280.0,112270.0,0.53775977]
[1758571718981,0.36035468,112280.0,112270.0,0.9796556]
[1758571719594,0.36035468,112280.0,112270.0,1.15779757]
[1758571719797,0.33630468,112280.0,112270.0,1.18050757]
[1758571720214,0.32802752,112280.0,112270.0,1.18050757]
[1758571720474,0.32802752,112280.0,112270.0,1.26577724]
[1758571720818,0.32802752,112280.0,112270.0,0.24767944]
[1758571721024,0.35412752,112280.0,112270.0,0.9764856]
[1758571722103,0.36242918,112280.0,112270.0,0.53979977]
[1758571722314,0.36242918,112280.0,112270.0,0.9764456]
[1758571722522,0.36242918,112280.0,112270.0,0.53979977]
[1758571722935,0.36242918,112280.0,112270.0,0.53767977]
[1758571723128,0.36242918,112280.0,112270.0,0.61396745]
[1758571724026,0.79907501,112280.0,112270.0,0.61396745]
[1758571724685,0.36242918,112280.0,112270.0,0.61396745]
[1758571724893,0.79907501,112280.0,112270.0,0.61709745]
[1758571725336,0.79907501,112280.0,112270.0,0.61396745]
[1758571725537,0.79907501,112280.0,112270.0,0.23344745]
[1758571725765,0.36242918,112280.0,112270.0,0.44660977]
[1758571725946,0.36242918,112280.0,112270.0,0.54288977]
[1758571726749,0.36040918,112280.0,112270.0,0.54288977]
[1758571727155,0.36242918,112280.0,112270.0,0.16240977]
[1758571727353,0.36242918,112280.0,112270.0,0.54288977]
[1758571727618,1.14210501,112280.0,112270.0,0.15815977]
[1758571727760,1.15871029,112280.0,112270.0,0.4533701]
[1758571728377,1.1587009,112280.0,112270.0,0.4533301]
[1758571729436,1.1587009,112280.0,112270.0,0.0728901]
[1758571729755,1.1587009,112280.0,112270.0,0.4533301]
[1758571729955,1.1587009,112280.0,112270.0,0.3570501]
[1758571730180,1.1587009,112280.0,112270.0,0.39275511]
[1758571730310,1.1587009,112280.0,112270.0,0.48903511]
[1758571731194,1.1587009,112280.0,112270.0,0.42214501]
[1758571732618,1.15869185,112280.0,112270.0,0.42214501]
[1758571733145,1.14210253,112280.0,112270.0,0.42214501]
[1758571733380,1.14210253,112280.0,112270.0,0.04170501]
[1758571733556,1.14210253,112280.0,112270.0,0.3864]
[1758571733692,1.14204152,112280.0,112270.0,0.3864]
[1758571735770,1.13901152,112280.0,112270.0,0.3864]
[1758571736115,1.14204152,112280.0,112270.0,0.38636]
[1758571738317,1.14204152,112280.0,112270.0,0.3864]
[1758571738533,1.14204152,112280.0,112270.0,0.43201252]
[1758571738872,1.14204152,112280.0,112270.0,0.05165252]
[1758571739077,1.14204152,112280.0,112270.0,0.38636]
[1758571739795,1.14204152,112280.0,112270.0,0.00604]
[1758571739999,1.14204152,112280.0,112270.0,0.27024]
[1758571743645,1.1420329,112280.0,112270.0,0.27024]
[1758571744193,1.1420329,112280.0,112270.0,0.27548]
[1758571744194,1.1390029,112280.0,112270.0,0.27548]
[1758571744402,1.1390029,112280.0,112270.0,0.31196452]
[1758571745895,1.1390029,112280.0,112270.0,0.30875452]
[1758571746746,1.1390029,112280.0,112270.0,0.31196452]
[1758571746924,1.2090029,112280.0,112270.0,0.31196452]
[1758571747569,1.2090029,112280.0,112270.0,0.30875452]
[1758571747941,1.2090029,112280.0,112270.0,0.30672452]
[1758571749621,1.2090029,112280.0,112270.0,0.30875452]
[1758571751281,1.2090029,112280.0,112270.0,0.31196452]
[1758571755382,1.22559576,112280.0,112270.0,0.31196452]
[1758571755824,1.22559576,112280.0,112270.0,0.04776452]
[1758571756025,1.22559576,112280.0,112270.0,0.00604]
[1758571756226,1.22871576,112280.0,112270.0,0.38612]
[1758571757997,1.22871576,112280.0,112270.0,0.00604]
[1758571758201,1.22871576,112280.0,112270.0,0.26284]
[1758571758431,1.23494169,112280.0,112270.0,0.26284]
[1758571758694,1.23494169,112280.0,112270.0,0.29608752]
[1758571760080,1.23495237,112280.0,112270.0,0.29608752]
[1758571762297,1.23183237,112280.0,112270.0,0.29809752]
[1758571762448,1.22560644,112280.0,112270.0,0.29809752]
[1758571762649,1.22560644,112280.0,112270.0,0.30113752]
[1758571763300,1.19950644,112280.0,112270.0,0.30113752]
[1758571763679,1.19950644,112280.0,112270.0,0.32493752]
[1758571763881,1.19950644,112280.0,112270.0,0.30113752]
[1758571764490,1.22395644,112280.0,112270.0,0.30113752]
[1758571765053,1.22600644,112280.0,112270.0,0.30113752]
[1758571765867,1.19950644,112280.0,112270.0,0.30113752]
[1758571766060,1.19950644,112280.0,112270.0,0.32493752]
[1758571766316,1.22395644,112280.0,112270.0,0.30113752]
[1758571766623,1.44245053,112280.0,112270.0,0.30113752]
[1758571767434,1.44450053,112280.0,112270.0,0.30113752]
[1758571768135,1.44449635,112280.0,112270.0,0.29809752]
[1758571769128,1.44449635,112280.0,112270.0,0.04129752]
[1758571769331,1.44449635,112280.0,112270.0,0.38797]
[1758571772154,1.44449609,112280.0,112270.0,0.38797]
[1758571773133,1.44449609,112280.0,112270.0,0.38596]
[1758571773344,1.44767609,112280.0,112270.0,0.38592]
[1758571773553,1.44449609,112280.0,112270.0,0.38592]
[1758571773710,1.44449609,112280.0,112270.0,0.43387652]
[1758571773918,0.78935617,112280.0,112270.0,0.43599652]
[1758571774117,1.44449609,112280.0,112270.0,0.43599652]
[1758571774890,0.78730617,112280.0,112270.0,0.43924652]
[1758571775026,1.44447589,112280.0,112270.0,0.43599652]
[1758571775454,1.44447589,112280.0,112270.0,0.43924652]
[1758571776634,1.44244589,112280.0,112270.0,0.43924652]
[1758571779211,1.11487593,112280.0,112270.0,0.43924652]
[1758571780004,1.09828311,112280.0,112270.0,0.43924652]
[1758571781061,1.07383311,112280.0,112270.0,0.43924652]
[1758571781205,1.07586311,112280.0,112270.0,0.43924652]
[1758571781542,1.09918311,112280.0,112270.0,0.43924652]
[1758571782105,1.09715311,112280.0,112270.0,0.43924652]
[1758571784627,1.09918311,112280.0,112270.0,0.43583652]
[1758571785769,1.09918311,112280.0,112270.0,0.05611652]
[1758571786027,1.77407968,112280.0,112270.0,0.00604]
[1758571786242,1.89259896,112280.0,112270.0,0.00604]
[1758571786466,1.89259896,112280.0,112270.0,0.08396]
[1758571786722,1.89259896,112280.0,112270.0,0.00604]
[1758571786918,1.89259896,112280.0,112270.0,0.15692]
[1758571787464,1.89259896,112280.0,112270.0,1e-08]
[1758571788088,1.89159896,112280.0,112270.0,1e-08]
[1758571788287,1.88359896,112280.0,112270.0,1e-08]
[1758571788513,1.90459896,112280.0,112270.0,0.00300001]
[1758571789057,1.90359896,112280.0,112270.0,0.00300001]
[1758571789217,1.90359896,112280.0,112270.0,1e-08]
[1758571789426,3.19673194,112280.0,112270.0,1e-08]
[1758571789617,3.19873194,112280.0,112270.0,1e-08]
[1758571790722,0.61332921,112260.0,112250.0,4e-05]
[1758571790947,2.97846799,112260.0,112250.0,4e-05]
[1758571791159,3.30524464,112260.0,112250.0,4e-05]
[1758571791369,3.35524464,112260.0,112250.0,4e-05]
[1758571792020,3.39600562,112260.0,112250.0,4e-05]
[1758571792226,1.55089947,112240.0,112230.0,0.35462631]
[1758571792440,1.66104243,112240.0,112230.0,0.35462631]
[1758571792658,1.68807598,112240.0,112230.0,0.35462631]
[1758571792859,1.71660598,112240.0,112230.0,0.28336]
[1758571793493,1.74339963,112240.0,112230.0,0.28348574]
[1758571793697,1.74339963,112240.0,112230.0,0.31189646]
[1758571794308,1.74439963,112240.0,112230.0,0.31589646]
[1758571794733,1.74439963,112240.0,112230.0,0.28748574]
[1758571795151,1.75339963,112240.0,112230.0,0.29048574]
[1758571796345,1.7595745,112240.0,112230.0,0.29048574]
[1758571798523,1.73254095,112240.0,112230.0,0.29048574]
[1758571801128,1.73254095,112240.0,112230.0,0.00712574]
[1758571801343,1.73254095,112240.0,112230.0,0.29048574]
[1758571801546,1.72354095,112240.0,112230.0,0.28748574]
[1758571801749,1.74054095,112240.0,112230.0,0.28948574]
[1758571801951,1.73954095,112240.0,112230.0,0.28548574]
[1758571802269,1.73954095,112240.0,112230.0,0.34069437]
[1758571802624,1.73954095,112240.0,112230.0,0.28544574]
[1758571803419,1.41197099,112240.0,112230.0,0.28644574]
[1758571803814,1.78471232,112240.0,112230.0,0.00312574]
[1758571804020,1.78471232,112240.0,112230.0,0.28644574]
[1758571804021,1.81198118,112240.0,112230.0,0.28644574]
[1758571804167,0.56820547,112230.0,112220.0,98.26984402]
[1758571804365,0.95103359,112230.0,112220.0,98.6385171]
[1758571804571,0.95103359,112230.0,112220.0,98.6416771]
[1758571804805,0.97782814,112230.0,112220.0,98.6416771]
[1758571805333,0.98482814,112230.0,112220.0,98.6416771]
[1758571806926,0.98582814,112230.0,112220.0,98.6436771]
[1758571807940,0.65825818,112230.0,112220.0,98.6436771]
[1758571808164,0.98582814,112230.0,112220.0,98.6436771]
[1758571808670,1.43462814,112230.0,112220.0,98.6436771]
[1758571808862,1.47979951,112230.0,112220.0,98.6405171]
[1758571809076,1.47979951,112230.0,112220.0,98.6315171]
[1758571809287,1.47979951,112230.0,112220.0,98.8346371]
[1758571809499,1.12801955,112230.0,112220.0,98.8346371]
[1758571809710,0.73801955,112230.0,112220.0,99.18504706]
[1758571809962,0.73184468,112230.0,112220.0,99.18504706]
[1758571810167,0.73667331,112230.0,112220.0,99.77610804]
[1758571810326,0.33304468,112230.0,112220.0,99.77610804]
[1758571811601,0.13826256,112230.0,112220.0,99.77610804]
[1758571812046,0.31646803,112230.0,112220.0,99.77610804]
[1758571812267,0.33294714,112230.0,112220.0,99.44853808]
[1758571813901,0.07794712,112230.0,112220.0,99.77610804]
[1758571814116,0.07794712,112230.0,112220.0,99.8439376]
[1758571814531,0.03277575,112230.0,112220.0,99.8439376]
[1758571814745,0.008,112230.0,112220.0,99.8439376]
[1758571816482,0.008,112230.0,112220.0,98.90551768]
[1758571816734,0.008,112230.0,112220.0,99.9402576]
[1758571816983,0.008,112230.0,112220.0,99.94675829]
[1758571819596,0.008,112230.0,112220.0,100.27432825]
[1758571819838,0.007,112230.0,112220.0,99.94475829]
[1758571820162,0.007,112230.0,112220.0,99.84835829]
[1758571820369,0.008,112230.0,112220.0,100.33507829]
[1758571820577,0.001,112230.0,112220.0,100.33507829]
[1758571820784,0.007,112230.0,112220.0,100.33707829]
[1758571821430,0.007,112230.0,112220.0,100.33703829]
[1758571823078,0.007,112230.0,112220.0,99.85531829]
[1758571823291,0.007,112230.0,112220.0,100.33703829]
[1758571823831,0.007,112230.0,112220.0,100.33695829]
[1758571824035,0.007,112230.0,112220.0,99.57215829]
[1758571824237,0.007,112230.0,112220.0,100.33695829]
[1758571824452,0.007,112230.0,112220.0,101.00452825]
[1758571824649,0.007,112230.0,112220.0,100.23972825]
[1758571824862,0.007,112230.0,112220.0,100.67695829]
[1758571826354,0.007,112230.0,112220.0,101.00452825]
[1758571826769,0.007,112230.0,112220.0,100.45861933]
[1758571828028,0.007,112230.0,112220.0,100.46344796]
[1758571830378,0.007,112230.0,112220.0,99.69864796]
[1758571830804,0.007,112230.0,112220.0,100.46332796]
[1758571834327,0.007,112230.0,112220.0,99.261847]
[1758571834514,0.007,112230.0,112220.0,100.46332796]
[1758571837408,0.007,112230.0,112220.0,100.46328796]
[1758571838236,0.001,112230.0,112220.0,100.46128796]
[1758571838445,0.006,112230.0,112220.0,100.46428796]
[1758571838875,0.005,112230.0,112220.0,100.45928796]
[1758571839127,0.07126631,112260.0,112250.0,0.17817371]
[1758571839341,0.07126631,112260.0,112250.0,1.1448093]
[1758571840017,0.37647908,112280.0,112260.0,0.17814291]
[1758571840259,0.40124702,112280.0,112270.0,0.36822967]
[1758571840464,0.22522091,112280.0,112270.0,0.54637164]
[1758571840668,0.40334702,112280.0,112270.0,0.46454967]
[1758571840873,0.33208071,112280.0,112270.0,0.7097249]
[1758571841293,0.33222178,112280.0,112270.0,0.7097249]
[1758571841702,0.33222178,112280.0,112270.0,0.7117349]
[1758571841902,0.34722178,112280.0,112270.0,0.7117349]
[1758571842114,0.33222178,112280.0,112270.0,0.53359293]
[1758571842327,0.33222178,112280.0,112270.0,0.15230293]
[1758571842534,0.33533178,112280.0,112270.0,0.46450967]
[1758571842746,0.33533178,112280.0,112270.0,0.08526967]
[1758571842948,0.33533178,112280.0,112270.0,0.46450967]
[1758571843165,0.77213274,112280.0,112270.0,0.46450967]
[1758571843372,0.78413274,112280.0,112270.0,0.46750967]
[1758571843554,0.78413274,112280.0,112270.0,0.22312417]
[1758571843733,0.78413274,112280.0,112270.0,0.60236417]
[1758571845019,0.78413274,112280.0,112270.0,0.60232417]
[1758571845215,0.78102274,112280.0,112270.0,0.60232417]
[1758571845419,0.78413274,112280.0,112270.0,0.22312417]
[1758571845643,0.78413274,112280.0,112270.0,0.50600417]
[1758571845851,0.78413274,112280.0,112270.0,0.60232417]
[1758571846060,0.76762078,112280.0,112270.0,0.60232417]
[1758571846466,0.7593648,112280.0,112270.0,0.60232417]
[1758571846747,0.7593648,112280.0,112270.0,0.22312417]
[1758571846951,1.5637281,112280.0,112270.0,0.28588]
[1758571847157,1.57947711,112280.0,112270.0,0.28588]
[1758571847368,1.56294735,112280.0,112270.0,0.28588]
[1758571847786,0.63934543,112280.0,112270.0,0.314468]
[1758571848008,1.12614639,112280.0,112270.0,0.314468]
[1758571848215,1.07614639,112280.0,112270.0,0.314468]
[1758571848627,1.12614639,112280.0,112270.0,0.314468]
[1758571848824,1.15714126,112280.0,112270.0,0.314468]
[1758571849078,1.57121265,112280.0,112270.0,0.30867114]
[1758571849306,1.59394222,112280.0,112270.0,0.407788]
[1758571852166,1.15714126,112280.0,112270.0,0.407788]
[1758571852671,0.7203403,112280.0,112270.0,0.407788]
[1758571852872,1.15714126,112280.0,112270.0,0.028588]
[1758571853108,1.15714126,112280.0,112270.0,0.37916]
[1758571853303,1.59394222,112280.0,112270.0,0.37916]
[1758571853932,0.7203403,112280.0,112270.0,0.37916]
[1758571854134,1.59394222,112280.0,112270.0,0.37916]
[1758571858127,1.15714126,112280.0,112270.0,0.37916]
[1758571862054,1.15714126,112280.0,112270.0,0.417076]
[1758571862453,1.15714205,112280.0,112270.0,0.417076]
[1758571863297,1.15714205,112280.0,112270.0,0.37916]
[1758571864259,0.35206109,112280.0,112270.0,0.3843]
[1758571864470,0.04718796,112280.0,112270.0,1.1077626]
[1758571864676,0.02040637,112280.0,112270.0,1.1077626]
[1758571864877,0.06214107,112280.0,112270.0,1.1077626]
[1758571865083,0.02040637,112280.0,112270.0,1.19303227]
[1758571865339,0.01214107,112280.0,112270.0,1.19303227]
[1758571865855,0.01214107,112280.0,112270.0,0.75623131]
[1758571866110,0.01214107,112280.0,112270.0,1.19303227]
[1758571867513,0.01214107,112280.0,112270.0,1.2595346]
[1758571868478,0.01214107,112280.0,112270.0,1.6468146]
[1758571868681,0.01214107,112280.0,112270.0,2.42361556]
[1758571868886,0.00014107,112280.0,112270.0,2.42361556]
[1758571869088,0.00014107,112280.0,112270.0,1.9848146]
[1758571869288,0.00914107,112280.0,112270.0,1.9938146]
[1758571869502,0.00114107,112280.0,112270.0,1.9898146]
[1758571869713,0.00114107,112280.0,112270.0,1.2253746]
[1758571869924,0.00514107,112280.0,112270.0,1.9955746]
[1758571870544,0.00414107,112280.0,112270.0,1.9905746]
[1758571870750,0.00414107,112280.0,112270.0,1.2263746]
[1758571870959,0.00514107,112280.0,112270.0,1.9975346]
[1758571872473,0.00514107,112280.0,112270.0,1.2333746]
[1758571872704,0.00514107,112280.0,112270.0,1.9975346]
[1758571874406,0.00514107,112280.0,112270.0,1.56073364]
[1758571874607,0.00514107,112280.0,112270.0,1.9975346]
[1758571875148,0.00514107,112280.0,112270.0,2.43433556]
[1758571875349,0.23691724,112320.0,112310.0,0.17807853]
[1758571875566,0.00899455,112320.0,112310.0,0.73291615]
[1758571875766,0.05014104,112320.0,112310.0,0.73291615]
[1758571875971,0.00014104,112320.0,112310.0,1.16971711]
[1758571876466,0.00014104,112320.0,112310.0,0.17599762]
[1758571876612,0.00014104,112320.0,112310.0,0.6744282]
[1758571876815,0.01614104,112320.0,112310.0,0.6744282]
[1758571876993,0.20305008,112320.0,112310.0,0.40006967]
[1758571877199,0.20305008,112320.0,112310.0,0.6744282]
[1758571877401,0.20305008,112320.0,112310.0,0.11750967]
[1758571877599,0.20305008,112320.0,112310.0,0.52690874]
[1758571877806,0.19420371,112320.0,112310.0,0.68088727]
[1758571878008,0.19420371,112320.0,112310.0,0.74691146]
[1758571878432,0.19420371,112320.0,112310.0,0.77101146]
[1758571878638,0.20303632,112320.0,112310.0,0.77101146]
[1758571881326,0.21126557,112320.0,112310.0,0.59289293]
[1758571881572,0.21126557,112320.0,112310.0,0.77097146]
[1758571881787,0.21126557,112320.0,112310.0,0.67469146]
[1758571881989,0.21126557,112320.0,112310.0,0.77097146]
[1758571882743,0.21126557,112320.0,112310.0,0.67469146]
[1758571883011,0.21126616,112320.0,112310.0,0.39217146]
[1758571883220,0.21126616,112320.0,112310.0,0.77097146]
[1758571885478,0.03320349,112320.0,112310.0,0.77097146]
[1758571887989,0.02437088,112320.0,112310.0,0.77097146]
[1758571888649,0.02437088,112320.0,112310.0,1.09820105]
[1758571892015,0.02437088,112320.0,112310.0,1.00184105]
[1758571892246,0.02437088,112320.0,112310.0,1.09808105]
[1758571895212,0.04086631,112320.0,112310.0,1.09808105]
[1758571896225,0.04086631,112320.0,112310.0,1.07398105]
[1758571896429,0.04086631,112320.0,112310.0,1.09871105]
[1758571897328,0.97393953,112320.0,112310.0,0.18690293]
[1758571897577,1.34362885,112320.0,112310.0,0.44001316]
[1758571897806,1.37039717,112320.0,112310.0,0.44001316]
[1758571899259,1.37046277,112320.0,112310.0,0.06133316]
[1758571899645,0.17809439,112300.0,112290.0,0.51727535]
[1758571899823,0.20288526,112300.0,112290.0,1.09122469]
[1758571900036,0.20288526,112300.0,112290.0,1.09325469]
[1758571900896,0.20288526,112300.0,112290.0,1.09725469]
[1758571900897,0.20388526,112300.0,112290.0,1.09725469]
[1758571901525,0.21388526,112300.0,112290.0,1.10125469]
[1758571902003,0.21388526,112300.0,112290.0,1.16767833]
[1758571903987,0.03579087,112300.0,112290.0,1.16767833]
[1758571904421,0.01922984,112300.0,112290.0,1.16767833]
[1758571904632,0.01922984,112300.0,112290.0,0.84044874]
[1758571904835,0.03579171,112300.0,112290.0,0.46176874]
[1758571905020,0.03579171,112300.0,112290.0,0.84044874]
[1758571905445,0.01922984,112300.0,112290.0,0.84044874]
[1758571910167,0.01922984,112300.0,112290.0,1.16767833]
[1758571911438,0.01922984,112300.0,112290.0,0.78899833]
[1758571911578,0.01922984,112300.0,112290.0,1.16767833]
[1758571913165,0.01922984,112300.0,112290.0,0.78899833]
[1758571913571,0.01922984,112300.0,112290.0,1.16767833]
[1758571914016,0.01922984,112300.0,112290.0,0.84044874]
[1758571914382,0.01922984,112300.0,112290.0,1.04044874]
[1758571914590,0.01922984,112300.0,112290.0,1.36767833]
[1758571915637,0.011,112300.0,112290.0,1.36767833]
[1758571915846,0.01928332,112300.0,112290.0,1.36767833]
[1758571916684,0.011,112300.0,112290.0,1.70767833]
[1758571917273,0.011,112300.0,112290.0,2.09279833]
[1758571917698,0.011,112300.0,112290.0,1.32899833]
[1758571917865,0.011,112300.0,112290.0,1.70767833]
[1758571918074,0.011,112300.0,112290.0,1.32899833]
[1758571918327,0.011,112300.0,112290.0,1.70767833]
[1758571920213,0.011,112300.0,112290.0,1.70763833]
[1758571927503,0.34034959,112300.0,112290.0,0.63400874]
[1758571927720,0.36406959,112300.0,112290.0,1.01252874]
[1758571927933,0.03684,112300.0,112290.0,1.01571874]
[1758571928376,0.36406959,112300.0,112290.0,1.01571874]
[1758571928626,0.03684,112300.0,112290.0,0.63711874]
[1758571928832,0.54533398,112300.0,112290.0,0.63197874]
[1758571929263,0.96773494,112300.0,112290.0,0.54120298]
[1758571929481,0.96773494,112300.0,112290.0,0.44496298]
[1758571929704,0.96773494,112300.0,112290.0,0.35969331]
[1758571929923,0.96773494,112300.0,112290.0,0.27442364]
[1758571930144,0.96773494,112300.0,112290.0,0.65386364]
[1758571930361,0.96773494,112300.0,112290.0,0.27442364]
[1758571930585,0.96773494,112300.0,112290.0,0.65386364]
[1758571930847,0.96773494,112300.0,112290.0,0.71925]
[1758571936274,0.91579494,112300.0,112290.0,0.72127]
[1758571936480,0.58856535,112300.0,112290.0,0.72433]
[1758571936685,0.96579494,112300.0,112290.0,0.72433]
[1758571936917,0.96579494,112300.0,112290.0,0.72127]
[1758571937853,0.08807,112300.0,112290.0,0.98464992]
[1758571938064,0.96872494,112300.0,112290.0,0.80443967]
[1758571939790,0.96872494,112300.0,112290.0,0.42507967]
[1758571940005,0.96872494,112300.0,112290.0,0.80451967]
[1758571940710,0.96579494,112300.0,112290.0,0.80451967]
[1758571941038,0.96579494,112300.0,112290.0,0.98262992]
[1758571941254,0.96579494,112300.0,112290.0,0.80451967]
[1758571942503,0.31133576,112300.0,112290.0,0.80451967]
[1758571942717,0.96579494,112300.0,112290.0,0.80451967]
[1758571942920,0.96579494,112300.0,112290.0,0.80653967]
[1758571943130,0.96579494,112300.0,112290.0,0.98770992]
[1758571943131,0.13112137,112300.0,112290.0,0.98770992]
[1758571943351,0.45835096,112300.0,112290.0,0.98770992]
[1758571943803,0.43340096,112300.0,112290.0,0.98770992]
[1758571944013,0.63644535,112300.0,112290.0,0.98770992]
[1758571944634,0.45835096,112300.0,112290.0,0.98770992]
[1758571944976,0.45830542,112300.0,112290.0,0.98770992]
[1758571945182,0.63639981,112300.0,112290.0,0.98770992]
[1758571946091,0.45830542,112300.0,112290.0,0.99421061]
[1758571946300,0.38818405,112300.0,112290.0,1.01798061]
[1758571946512,0.06095446,112300.0,112290.0,1.01798061]
[1758571946725,0.38818405,112300.0,112290.0,1.01798061]
[1758571950763,0.49747747,112300.0,112290.0,1.01798061]
[1758571951619,0.67557186,112300.0,112290.0,0.92130061]
[1758571951823,0.69902186,112300.0,112290.0,0.61477061]
[1758571952031,0.69902186,112300.0,112290.0,0.99381061]
[1758571952857,0.52092747,112300.0,112290.0,0.99381061]
[1758571954198,0.52292747,112300.0,112290.0,0.61171061]
[1758571954402,0.52292747,112300.0,112290.0,0.99087061]
[1758571954899,0.52292747,112300.0,112290.0,0.99389061]
[1758571955026,0.52092747,112300.0,112290.0,0.99389061]
[1758571955861,0.08440446,112300.0,112290.0,0.99389061]
[1758571956081,0.52092747,112300.0,112290.0,0.99389061]
[1758571957322,0.06095446,112300.0,112290.0,0.99389061]
[1758571957548,0.49747747,112300.0,112290.0,1.01774061]
[1758571957885,0.67557186,112300.0,112290.0,0.89749061]
[1758571958080,0.70102186,112300.0,112290.0,0.99377061]
[1758571958280,0.26249885,112300.0,112290.0,0.99377061]
[1758571958521,0.69902186,112300.0,112290.0,0.99377061]
[1758571958701,0.69902186,112300.0,112290.0,0.61473061]
[1758571958903,0.70102186,112300.0,112290.0,0.99369061]
[1758571960486,0.69902186,112300.0,112290.0,0.99369061]
[1758571962315,0.69902186,112300.0,112290.0,0.98869061]
[1758571964406,0.70102186,112300.0,112290.0,0.52286036]
[1758571964608,0.70418186,112300.0,112290.0,0.98341061]
[1758571964944,0.70418186,112300.0,112290.0,0.98542061]
[1758571964945,0.70102186,112300.0,112290.0,0.98542061]
[1758571966493,0.70102186,112300.0,112290.0,0.80731036]
[1758571966696,0.26449885,112300.0,112290.0,0.80731036]
[1758571966857,0.70102186,112300.0,112290.0,0.42859036]
[1758571967067,0.74935323,112300.0,112290.0,0.42658036]
[1758571967280,0.74935323,112300.0,112290.0,0.80542036]
[1758571969205,0.31283022,112300.0,112290.0,0.80542036]
[1758571969333,0.74619323,112300.0,112290.0,0.80542036]
[1758571969535,0.74935323,112300.0,112290.0,0.80542036]
[1758571970777,0.74935323,112300.0,112290.0,0.42658036]
[1758571970988,0.74935323,112300.0,112290.0,0.80546036]
[1758571971585,0.74935323,112300.0,112290.0,0.42658036]
[1758571971887,0.74935323,112300.0,112290.0,0.65532433]
[1758571971888,1.08935323,112300.0,112290.0,0.65532433]
[1758571974396,1.08619323,112300.0,112290.0,0.58890069]
[1758571975252,0.06095446,112300.0,112290.0,0.85731061]
[1758571975426,0.06095446,112300.0,112290.0,0.88116061]
[1758571975651,0.23904885,112300.0,112290.0,0.88116061]
[1758571975830,0.06095446,112300.0,112290.0,0.96643028]
[1758571976029,0.49747747,112300.0,112290.0,0.96643028]
[1758571976296,0.06095446,112300.0,112290.0,0.96643028]
[1758571976518,0.01095446,112300.0,112290.0,1.37910329]
[1758571976733,0.01095446,112300.0,112290.0,1.40295329]
[1758571976932,0.01095446,112300.0,112290.0,0.96643028]
[1758571977938,0.01095446,112300.0,112290.0,0.96651028]
[1758571978516,0.01095446,112300.0,112290.0,1.03169061]
[1758571978927,0.01095446,112300.0,112290.0,0.65221061]
[1758571979081,0.01095446,112300.0,112290.0,1.03177061]
[1758571979283,0.62557186,112300.0,112290.0,0.45025036]
[1758571979640,0.65100186,112300.0,112290.0,0.73063036]
[1758571979865,0.70100186,112300.0,112290.0,1.00502061]
[1758571980073,0.70100186,112300.0,112290.0,1.00808061]
[1758571980274,0.26231885,112300.0,112290.0,1.00808061]
[1758571980432,0.69884186,112300.0,112290.0,0.91180061]
[1758571980642,0.69884186,112300.0,112290.0,1.00808061]
[1758571981042,0.69884186,112300.0,112290.0,0.62840061]
[1758571981261,0.69884186,112300.0,112290.0,1.00808061]
[1758571981469,0.70100186,112300.0,112290.0,0.82683036]
[1758571981838,0.70100186,112300.0,112290.0,0.82482036]
[1758571982045,0.70100186,112300.0,112290.0,0.83000036]
[1758571982269,0.69884186,112300.0,112290.0,1.00811061]
[1758571982446,0.26231885,112300.0,112290.0,1.00811061]
[1758571982654,0.69884186,112300.0,112290.0,1.00811061]
[1758571983317,0.70100186,112300.0,112290.0,0.82694036]
[1758571984162,0.70100186,112300.0,112290.0,0.83000036]
[1758571984386,0.70100186,112300.0,112290.0,0.45040036]
[1758571984605,0.70100186,112300.0,112290.0,1.00819061]
[1758571985544,0.69884186,112300.0,112290.0,1.00819061]
[1758571988046,0.70100186,112300.0,112290.0,0.45040036]
[1758571988259,0.70100186,112300.0,112290.0,1.00807061]
[1758571990013,0.52074747,112300.0,112290.0,1.00807061]
[1758571990433,0.23904885,112300.0,112290.0,1.00807061]
[1758571990643,0.67557186,112300.0,112290.0,1.00807061]
[1758571991248,0.23904885,112300.0,112290.0,1.00807061]
[1758571991477,0.67557186,112300.0,112290.0,0.62851061]
[1758571991651,0.67557186,112300.0,112290.0,1.00775061]
[1758571992075,0.69884186,112300.0,112290.0,1.00775061]
[1758571992493,0.69884186,112300.0,112290.0,0.91155061]
[1758571992692,0.69884186,112300.0,112290.0,1.00783061]
[1758571994063,0.70100186,112300.0,112290.0,0.82972036]
[1758571994262,0.70100186,112300.0,112290.0,1.00477061]
[1758571994491,0.70100186,112300.0,112290.0,0.62851061]
[1758571994673,0.70100186,112300.0,112290.0,0.82442036]
[1758571994879,0.72777136,112300.0,112290.0,0.82442036]
[1758571995672,0.72777136,112300.0,112290.0,0.44522036]
[1758571995877,0.77592273,112300.0,112290.0,0.73915069]
[1758571996682,0.77592273,112300.0,112290.0,0.73919069]
[1758571997067,0.77592273,112300.0,112290.0,0.35995069]
[1758571997268,0.77592273,112300.0,112290.0,0.73919069]
[1758571997470,0.77592273,112300.0,112290.0,0.35995069]
[1758571997673,0.77592273,112300.0,112290.0,0.41375804]
[1758571997883,0.77592273,112300.0,112290.0,0.79299804]
[1758571999172,0.33939972,112300.0,112290.0,0.79299804]
[1758571999372,0.77592273,112300.0,112290.0,0.79299804]
[1758572000573,0.77592273,112300.0,112290.0,0.69659804]
[1758572000780,0.77592273,112300.0,112290.0,0.79287804]
[1758572002145,0.56941834,112300.0,112290.0,0.97614829]
[1758572002352,0.74751273,112300.0,112290.0,0.97614829]
[1758572002591,0.74751273,112300.0,112290.0,1.00038829]